fUSD/lending_fUSD_20260419
["ID","MTS","AMOUNT","RATE_DAILY","PERIOD"]
[420810786,1776546632163,-500.0,8.599e-05,2]
[420810787,1776546632173,-500.0,8.599e-05,2]
[420810788,1776546632183,-508.43489968,8.599e-05,2]
[420810789,1776546632193,-500.0,8.599e-05,2]
[420810790,1776546632203,-500.0,8.599e-05,2]
[420810791,1776546632213,-500.0,8.599e-05,2]
[420810792,1776546632223,-195.71317417,8.599e-05,2]
[420810793,1776546632233,-500.0,8.599e-05,2]
[420810794,1776546632243,-515.47367815,8.599e-05,2]
[420810795,1776546632253,-500.0,8.599e-05,2]
[420810796,1776546632263,-501.11505511,8.599e-05,2]
[420810797,1776546632273,-507.1964554,8.599e-05,2]
[420810798,1776546632284,-500.0,8.599e-05,2]
[420810799,1776546632294,-155.59115507,8.599e-05,2]
[420810800,1776546632304,-500.0,8.599e-05,2]
[420810801,1776546632314,-500.0,8.599e-05,2]
[420810802,1776546632325,-500.0,8.599e-05,2]
[420810803,1776546632335,-15.54950962,8.599e-05,2]
[420810804,1776546632349,-312.80596111,8.599e-05,2]
[420810805,1776546632360,-31.83924589,8.599e-05,2]
[420810806,1776546632372,-468.16075411,8.599e-05,2]
[420810807,1776546632382,-500.0,8.599e-05,2]
[420810808,1776546632393,-1139.21165282,8.6e-05,2]
[420810809,1776546632407,-360.78834718,8.6e-05,2]
[420810810,1776546632417,-1500.0,8.6e-05,2]
[420810811,1776546632427,-1217.252306,8.6e-05,2]
[420810812,1776546632437,-500.0,8.6e-05,2]
[420810813,1776546632447,-153.85445399,8.603e-05,2]
[420810814,1776546632457,-250.0,8.658e-05,2]
[420810815,1776546632467,-228.5530421,8.658e-05,2]
[420810816,1776546632480,-191.4469579,8.658e-05,2]
[420810817,1776546632490,-500.0,8.673e-05,2]
[420810818,1776546632500,-458.62216733,8.673e-05,2]
[420810819,1776546632516,-41.37783267,8.673e-05,2]
[420810820,1776546632525,-500.0,8.673e-05,2]
[420810821,1776546632535,-2496.18604933,8.7e-05,2]
[420810831,1776546638119,-2212.14226552,8.7e-05,2]
[420811173,1776546642897,-306.069,8.7e-05,2]
[420811174,1776546643055,-379.14,8.7e-05,2]
[420811175,1776546643109,-29948.97847713,8.7e-05,2]
[420811176,1776546643162,-984.49388968,8.7e-05,2]
[420811186,1776546643274,-976632.74180191,8.7e-05,2]
[420811190,1776546643329,-7276.90677087,8.7e-05,2]
[420811191,1776546643387,-1316.30482803,8.7e-05,2]
[420811203,1776546645850,-130791.19355146,8.7e-05,2]
[420811204,1776546645862,-956.75230534,8.7e-05,2]
[420811205,1776546645957,-793.1136,8.7e-05,2]
[420811208,1776546646170,-46249.356553,8.7e-05,2]
[420811209,1776546646236,-26043.30398392,8.7e-05,2]
[420811210,1776546646248,-6486.69601608,8.7e-05,2]
[420811212,1776546646332,-1165.57730191,8.7e-05,2]
[420811213,1776546646343,-1439.22,8.7e-05,2]
[420811214,1776546646355,-537.60600006,8.7e-05,2]
[420811219,1776546705424,871.77598971,0.0003287,120]
[420811222,1776547139086,250.58961756,0.00032541,120]
[420811224,1776547489416,500.69,0.00032877,120]
[420811225,1776547818756,927.0,0.00032877,120]
[420811229,1776547832059,-241.0,7.655e-05,2]
[420811230,1776547832068,-606.27840171,7.655e-05,2]
[420811231,1776547832080,-447.6126523,7.655e-05,2]
[420811232,1776547832092,-5049.76894599,7.655e-05,2]
[420811233,1776547832102,-1200.0,7.717e-05,2]
[420811234,1776547832111,-300.0,7.717e-05,2]
[420811235,1776547832121,-150.0,7.718e-05,2]
[420811236,1776547832131,-150.0,7.718e-05,2]
[420811237,1776547832141,-150.0,7.718e-05,2]
[420811238,1776547832151,-150.0,7.718e-05,2]
[420811239,1776547832160,-150.0,7.718e-05,2]
[420811240,1776547832170,-150.0,7.718e-05,2]
[420811241,1776547832182,-1500.0,7.749e-05,2]
[420811242,1776547832192,-2000.0,8.219e-05,2]
[420811243,1776547832201,-150.0,8.22e-05,2]
[420811244,1776547832211,-2000.0,8.384e-05,2]
[420811245,1776547832220,-150.0,8.402e-05,2]
[420811246,1776547832230,-250.44,8.42e-05,2]
[420811247,1776547832240,-300.0,8.421e-05,2]
[420811248,1776547832251,-300.0,8.421e-05,2]
[420811249,1776547832261,-300.0,8.421e-05,2]
[420811250,1776547832271,-300.0,8.421e-05,2]
[420811251,1776547832280,-300.0,8.421e-05,2]
[420811252,1776547832290,-1726.11727084,8.421e-05,2]
[420811253,1776547832299,-500.0,8.466e-05,2]
[420811254,1776547832308,-1680.0,8.488e-05,2]
[420811255,1776547832318,-420.0,8.488e-05,2]
[420811256,1776547832327,-280.35994546,8.49e-05,2]
[420811257,1776547832337,-500.93469977,8.573e-05,2]
[420811258,1776547832347,-500.0,8.573e-05,2]
[420811259,1776547832356,-500.0,8.573e-05,2]
[420811260,1776547832367,-502.19224822,8.573e-05,2]
[420811261,1776547832376,-500.0,8.573e-05,2]
[420811262,1776547832384,-500.0,8.573e-05,2]
[420811263,1776547832393,-150.0,8.598e-05,2]
[420811264,1776547832403,-1017.485,8.599e-05,2]
[420811265,1776547832412,-1108.63943564,8.599e-05,3]
[420811266,1776547832422,-500.0,8.599e-05,2]
[420811267,1776547832431,-500.0,8.599e-05,2]
[420811268,1776547832441,-250.0,8.599e-05,2]
[420811269,1776547832450,-290.961,8.599e-05,2]
[420811270,1776547832460,-500.0,8.599e-05,2]
[420811271,1776547832470,-645.71013068,8.599e-05,2]
[420811272,1776547832479,-500.0,8.599e-05,2]
[420811273,1776547832488,-500.0,8.599e-05,2]
[420811274,1776547832497,-500.0,8.599e-05,2]
[420811275,1776547832507,-365.53011172,8.599e-05,2]
[420811276,1776547832517,-410.48147624,8.599e-05,2]
[420811277,1776547832526,-500.0,8.599e-05,2]
[420811278,1776547832536,-500.0,8.599e-05,2]
[420811279,1776547832545,-500.0,8.599e-05,2]
[420811280,1776547832555,-257.92200831,8.599e-05,2]
[420811281,1776547832564,-145796.7513,8.6e-05,2]
[420811282,1776547832573,-161025.87316714,8.6e-05,2]
[420811283,1776547832585,-27264.37643127,8.6e-05,2]
[420811284,1776547832597,-87122.72651679,8.6e-05,2]
[420811285,1776547832609,-89995.00941321,8.6e-05,2]
[420811286,1776547832632,-398.36906693,8.6e-05,2]
[420811287,1776547832643,-4934.76220405,8.6e-05,2]
[420811288,1776547832654,-300.0,8.6e-05,2]
[420811289,1776547832666,-19448.83382538,8.6e-05,2]
[420811290,1776547832676,-12307.82282015,8.6e-05,2]
[420811291,1776547832688,-1226.08351096,8.6e-05,2]
[420811292,1776547832699,-716.88532856,8.6e-05,2]
[420811293,1776547832711,-1309.45761818,8.6e-05,2]
[420811294,1776547832722,-6800.75666621,8.6e-05,2]
[420811295,1776547832734,-1782.3873477,8.6e-05,2]
[420811326,1776547839553,-2212.14226552,8.6e-05,2]
[420811327,1776547839564,-426.61846658,8.6e-05,2]
[420811328,1776547839576,-5861.0,8.6e-05,2]
[420811330,1776547840275,-3984.22621312,8.6e-05,2]
[420811331,1776547840331,-401.11954258,8.6e-05,2]
[420811332,1776547840343,-372.34049029,8.6e-05,2]
[420811333,1776547840551,-422764.40386686,8.6e-05,2]
[420811334,1776547840563,-1414.65637329,8.6e-05,2]
[420811335,1776547840575,-670.32659207,8.6e-05,2]
[420811336,1776547840714,-1407.38003316,8.6e-05,2]
[420811337,1776547840771,-276.99747719,8.6e-05,2]
[420811346,1776547846519,-250.44,8.354e-05,2]
[420811347,1776547846581,-249.56,8.354e-05,2]
[420811348,1776547846591,-239.21,8.438e-05,2]
[420811349,1776547846601,-558.16,8.557e-05,2]
[420811350,1776547846610,-17752.35192885,8.6e-05,2]
[420811352,1776547847648,846.0,0.00032877,120]
[420811353,1776547898853,1408.0,0.0003287,120]
[420811354,1776547899054,746.0,0.0003287,120]
[420811355,1776548022043,-261.72,8.251e-05,2]
[420811356,1776548022072,-150.0,8.3e-05,2]
[420811357,1776548022100,-392.58,8.302e-05,2]
[420811358,1776548022128,-500.0,8.348e-05,2]
[420811359,1776548022157,-199.4,8.353e-05,2]
[420811360,1776548022783,-523.44,8.353e-05,2]
[420811361,1776548022819,-249.25,8.404e-05,2]
[420811362,1776548022850,-654.3,8.404e-05,2]
[420811363,1776548022879,-299.1,8.455e-05,2]
[420811364,1776548022908,-785.16,8.455e-05,2]
[420811365,1776548022939,-348.95,8.506e-05,2]
[420811366,1776548022968,-916.02,8.506e-05,2]
[420811367,1776548023000,-150.0,8.52e-05,2]
[420811368,1776548023032,-500.0,8.521e-05,2]
[420811369,1776548023065,-300.0,8.555e-05,2]
[420811370,1776548023097,-697.94,8.557e-05,2]
[420811371,1776548023125,-1177.74,8.557e-05,2]
[420811372,1776548023155,-500.0,8.573e-05,2]
[420811373,1776548023184,-500.0,8.573e-05,2]
[420811374,1776548023214,-500.0,8.573e-05,2]
[420811375,1776548023243,-500.21459105,8.573e-05,2]
[420811376,1776548023271,-500.29600956,8.573e-05,2]
[420811377,1776548023299,-500.0,8.573e-05,2]
[420811378,1776548023328,-150.0,8.594e-05,2]
[420811379,1776548023357,-200.0,8.595e-05,2]
[420811380,1776548023386,-1377.42282659,8.595e-05,2]
[420811381,1776548023416,-9211.34798985,8.595e-05,2]
[420811382,1776548023443,-695.39793187,8.595e-05,2]
[420811383,1776548023470,-200.0,8.595e-05,2]
[420811384,1776548023500,-151.0,8.595e-05,2]
[420811385,1776548023528,-1750.0,8.595e-05,2]
[420811386,1776548023556,-201.93286099,8.595e-05,2]
[420811387,1776548023585,-743.50770149,8.595e-05,2]
[420811388,1776548023619,-241.36279375,8.595e-05,2]
[420811389,1776548023648,-174.61919141,8.595e-05,2]
[420811390,1776548023676,-152.0,8.595e-05,2]
[420811391,1776548023704,-152.0,8.595e-05,2]
[420811392,1776548023733,-621.78829552,8.595e-05,2]
[420811393,1776548023762,-187.78006525,8.595e-05,2]
[420811394,1776548023799,-151.0,8.597e-05,2]
[420811395,1776548023836,-500.0,8.599e-05,2]
[420811396,1776548023876,-500.0,8.599e-05,2]
[420811397,1776548023916,-500.0,8.599e-05,2]
[420811398,1776548023955,-500.0,8.599e-05,2]
[420811399,1776548023992,-621.02746286,8.599e-05,2]
[420811400,1776548024029,-500.0,8.599e-05,2]
[420811401,1776548024070,-500.0,8.599e-05,2]
[420811402,1776548024109,-500.0,8.599e-05,2]
[420811403,1776548024147,-500.0,8.599e-05,2]
[420811404,1776548024184,-500.0,8.599e-05,2]
[420811405,1776548024222,-500.0,8.599e-05,2]
[420811406,1776548024264,-500.0,8.599e-05,2]
[420811407,1776548024302,-500.0,8.599e-05,2]
[420811408,1776548024339,-500.0,8.599e-05,2]
[420811409,1776548024377,-500.0,8.599e-05,2]
[420811410,1776548024412,-500.0,8.599e-05,2]
[420811411,1776548024448,-500.0,8.599e-05,2]
[420811412,1776548024488,-500.0,8.599e-05,2]
[420811413,1776548024526,-500.0,8.599e-05,2]
[420811414,1776548024564,-500.0,8.599e-05,2]
[420811415,1776548024600,-500.0,8.599e-05,2]
[420811416,1776548024639,-500.0,8.599e-05,2]
[420811417,1776548024676,-500.0,8.599e-05,2]
[420811418,1776548024711,-500.0,8.599e-05,2]
[420811419,1776548024746,-500.0,8.599e-05,2]
[420811420,1776548024781,-500.0,8.599e-05,2]
[420811421,1776548024817,-500.0,8.599e-05,2]
[420811422,1776548024852,-599.22277968,8.599e-05,2]
[420811423,1776548024889,-500.0,8.599e-05,2]
[420811424,1776548024925,-500.0,8.599e-05,2]
[420811425,1776548024960,-500.0,8.599e-05,2]
[420811426,1776548024995,-500.0,8.599e-05,2]
[420811427,1776548025034,-500.0,8.599e-05,2]
[420811428,1776548025072,-500.0,8.599e-05,2]
[420811429,1776548025109,-500.0,8.599e-05,2]
[420811430,1776548025146,-500.0,8.599e-05,2]
[420811431,1776548025182,-500.0,8.599e-05,2]
[420811432,1776548025219,-500.0,8.599e-05,2]
[420811433,1776548025257,-500.0,8.599e-05,2]
[420811434,1776548025293,-500.0,8.599e-05,2]
[420811435,1776548025329,-500.0,8.599e-05,2]
[420811436,1776548025357,-500.0,8.599e-05,2]
[420811437,1776548025384,-455.47950013,8.599e-05,2]
[420811438,1776548034385,500.0,0.00032876,120]
[420811439,1776548154067,2163.8840337,0.0003287,120]
[420811440,1776548154572,1004.0,0.00032876,120]
[420811441,1776548154664,1522.0,0.00032876,120]
[420811442,1776548185497,285.0,0.00032876,120]
[420811443,1776548185563,1289.0,0.00032876,120]
[420811444,1776548185950,403.49694285,0.00032876,120]
[420811445,1776548187787,1111.19127539,0.00032877,120]
[420811446,1776548198044,204.0,0.0003287,120]
[420811447,1776548198830,1377.0,0.0003287,120]
[420811448,1776548199603,1515.0,0.0003287,120]
[420811449,1776548200384,853.0,0.0003287,120]
[420811450,1776548201182,592.0,0.0003287,120]
[420811451,1776548203984,469.0,0.0003287,120]
[420811452,1776548225739,857.56,0.00027768,120]
[420811453,1776548225986,857.56,0.00027919,120]
[420811454,1776548226211,857.56,0.00029799,120]
[420811455,1776548226447,857.56,0.00029799,120]
[420811456,1776548226681,857.56,0.00029799,120]
[420811457,1776548226912,857.56,0.00029799,120]
[420811458,1776548227131,857.56,0.00029799,120]
[420811459,1776548227341,857.56,0.00029799,120]
[420811460,1776548227559,857.73119479,0.00029799,120]
[420811461,1776548267799,500.0,0.0003287,120]
[420811462,1776548310801,184.02,0.00012,120]
[420811463,1776548317192,482.0,0.0003287,120]
[420811464,1776548317965,1676.0,0.0003287,120]
[420811465,1776548318761,1659.0,0.0003287,120]
[420811466,1776548321978,2200.0,0.00032877,120]
[420811467,1776548326172,575.08,0.00032877,120]
[420811468,1776548362483,1029.39968039,0.00027397,120]
[420811469,1776548389475,963.0,0.0003287,120]
[420811470,1776548437486,572.97590401,0.0003287,120]
[420811471,1776548441141,506.76893701,0.00032849,120]
[420811472,1776548442941,1003.78,0.00032667,120]
[420811473,1776548569737,780.72,0.00027768,120]
[420811474,1776548569996,780.72,0.00027964,120]
[420811475,1776548579736,780.72,0.00029799,120]
[420811476,1776548580009,780.72,0.00029799,120]
[420811477,1776548580253,780.72,0.00029799,120]
[420811478,1776548580470,780.72,0.00029799,120]
[420811479,1776548580703,780.72,0.00029799,120]
[420811480,1776548580934,780.72,0.00029799,120]
[420811481,1776548581161,780.72,0.00029799,120]
[420811482,1776548581385,780.72,0.00029799,120]
[420811483,1776548581622,780.72,0.00029799,120]
[420811484,1776548581851,780.90476664,0.00029799,120]
[420811485,1776548604972,500.0,0.0003287,120]
[420811487,1776548678435,1858.03973946,0.00032822,120]
[420811488,1776548680189,1394.24654856,0.00032575,120]
[420811489,1776548780948,535.97,0.00027768,120]
[420811490,1776548781027,535.97,0.00027964,120]
[420811491,1776548781101,535.97,0.00029799,120]
[420811492,1776548781164,535.97,0.00029799,120]
[420811493,1776548781232,535.97,0.00029799,120]
[420811494,1776548781335,535.97,0.00029799,120]
[420811495,1776548781466,535.97,0.00029799,120]
[420811496,1776548781579,535.97,0.00029799,120]
[420811497,1776548781973,535.97,0.00029799,120]
[420811498,1776548782086,535.97,0.00029799,120]
[420811499,1776548782169,535.97,0.00029799,120]
[420811500,1776548782303,536.09,0.00029799,120]
[420811501,1776548940128,500.0,0.0003287,120]
[420811515,1776549032896,-13058.08,7.615e-05,2]
[420811516,1776549032906,-7891.98,7.675e-05,2]
[420811517,1776549032917,-708.10694529,7.714e-05,2]
[420811518,1776549032927,-250.0,7.714e-05,2]
[420811519,1776549032936,-300.0,7.753e-05,2]
[420811520,1776549032946,-1200.0,7.753e-05,2]
[420811521,1776549032955,-300.0,7.753e-05,2]
[420811522,1776549032965,-300.0,7.754e-05,2]
[420811523,1776549032974,-287.0,7.754e-05,2]
[420811524,1776549032984,-150.0,7.756e-05,2]
[420811525,1776549032993,-41403.43360351,7.757e-05,2]
[420811526,1776549033005,-2295.0,7.757e-05,2]
[420811527,1776549033028,-614.44639649,7.757e-05,2]
[420811528,1776549033038,-1600.0,8.217e-05,2]
[420811529,1776549033049,-150.0,8.246e-05,2]
[420811530,1776549033059,-197.06432061,8.264e-05,2]
[420811531,1776549033069,-578.20924308,8.349e-05,2]
[420811532,1776549033079,-2065.44499598,8.349e-05,2]
[420811533,1776549033090,-7145.90299387,8.349e-05,2]
[420811534,1776549033100,-200.0,8.349e-05,2]
[420811535,1776549033109,-187.78006524,8.349e-05,2]
[420811536,1776549033119,-500.0,8.349e-05,2]
[420811537,1776549033128,-1377.42282659,8.349e-05,2]
[420811538,1776549033138,-695.39793187,8.349e-05,2]
[420811539,1776549033147,-200.0,8.349e-05,2]
[420811540,1776549033157,-2000.0,8.349e-05,2]
[420811541,1776549033167,-196.06269858,8.349e-05,2]
[420811542,1776549033179,-201.93286099,8.349e-05,2]
[420811543,1776549033189,-174.61919141,8.349e-05,2]
[420811544,1776549033198,-346.31669736,8.404e-05,2]
[420811545,1776549033210,-1466.46,8.404e-05,2]
[420811546,1776549033226,-969.80549567,8.404e-05,2]
[420811547,1776549033237,-5792.12889836,8.404e-05,2]
[420811555,1776549038372,-547.4565743,8.404e-05,2]
[420811556,1776549038427,-430.00019978,8.404e-05,2]
[420811557,1776549038438,-133.19492613,8.404e-05,2]
[420811558,1776549038532,-366.80507387,8.404e-05,2]
[420811559,1776549038541,-300.0,8.442e-05,2]
[420811560,1776549038552,-300.0,8.442e-05,2]
[420811561,1776549038562,-300.0,8.442e-05,2]
[420811562,1776549038572,-300.0,8.442e-05,2]
[420811563,1776549038582,-300.0,8.442e-05,2]
[420811564,1776549038592,-250.0,8.442e-05,2]
[420811565,1776549038603,-5000.0,8.442e-05,2]
[420811566,1776549038617,-250.0,8.442e-05,2]
[420811567,1776549038627,-1093.19492613,8.459e-05,2]
[420811568,1776549038645,-2528.48506424,8.459e-05,2]
[420811569,1776549038697,-2212.14226552,8.459e-05,2]
[420811570,1776549038709,-1503.92380326,8.459e-05,2]
[420811571,1776549038719,-500.0,8.459e-05,2]
[420811572,1776549038728,-500.0,8.466e-05,2]
[420811573,1776549038738,-150.36,8.496e-05,2]
[420811574,1776549038748,-308.36849256,8.514e-05,2]
[420811577,1776549040430,-191.63150744,8.514e-05,2]
[420811578,1776549040440,-1680.0,8.528e-05,2]
[420811579,1776549040449,-300.0,8.528e-05,2]
[420811580,1776549040459,-420.0,8.529e-05,2]
[420811581,1776549040468,-255.0,8.532e-05,2]
[420811582,1776549040477,-150.0,8.546e-05,2]
[420811583,1776549040487,-500.0,8.569e-05,2]
[420811584,1776549040496,-1000.0,8.599e-05,2]
[420811585,1776549040505,-151.0,8.619e-05,2]
[420811586,1776549040515,-500.0,8.624e-05,2]
[420811587,1776549040525,-3670.3254,8.675e-05,2]
[420811588,1776549040535,-2500.0,8.675e-05,2]
[420811589,1776549040544,-500.0,8.679e-05,2]
[420811590,1776549040553,-500.0,8.71e-05,2]
[420811591,1776549040563,-539.0,8.71e-05,5]
[420811592,1776549040572,-222.0,8.732e-05,2]
[420811593,1776549040581,-500.0,8.734e-05,2]
[420811594,1776549040591,-500.0,8.753e-05,2]
[420811595,1776549040600,-500.0,8.753e-05,2]
[420811596,1776549040609,-500.0,8.753e-05,2]
[420811597,1776549040618,-609.95408242,8.753e-05,2]
[420811598,1776549040627,-500.0,8.753e-05,2]
[420811599,1776549040636,-150.0,8.77e-05,2]
[420811600,1776549040645,-281.23,8.774e-05,2]
[420811601,1776549040654,-500.0,8.774e-05,2]
[420811602,1776549040663,-500.0,8.774e-05,2]
[420811603,1776549040673,-351.99709148,8.774e-05,2]
[420811604,1776549040682,-500.0,8.774e-05,2]
[420811605,1776549040691,-500.0,8.774e-05,2]
[420811606,1776549040701,-500.0,8.774e-05,2]
[420811607,1776549040710,-622.02502425,8.774e-05,2]
[420811608,1776549040719,-287.33703337,8.774e-05,2]
[420811609,1776549040729,-500.0,8.774e-05,2]
[420811610,1776549040738,-500.0,8.774e-05,2]
[420811611,1776549040747,-230.54540582,8.774e-05,2]
[420811612,1776549040756,-310.90757129,8.774e-05,2]
[420811613,1776549040765,-585.79108621,8.774e-05,2]
[420811614,1776549040775,-1500.0,8.775e-05,2]
[420811615,1776549040784,-1578.040654,8.775e-05,2]
[420811616,1776549040793,-3674.15854872,8.775e-05,2]
[420811617,1776549040824,-1893.198547,8.775e-05,2]
[420811618,1776549040836,-338.004,8.775e-05,2]
[420811619,1776549040957,-305.11934148,8.775e-05,2]
[420811633,1776549044340,-372.27914492,8.775e-05,2]
[420811634,1776549044352,-1265.91989,8.775e-05,2]
[420811635,1776549044363,-1074.71085508,8.775e-05,2]
[420811636,1776549044383,-1170.58959906,8.775e-05,2]
[420811637,1776549044402,-2121.80929683,8.775e-05,2]
[420811638,1776549046713,-1449.26927114,8.775e-05,2]
[420811639,1776549046743,-2128.68306836,8.775e-05,2]
[420811642,1776549047553,-41125.46414847,8.775e-05,2]
[420811643,1776549047587,-11546.86014265,8.775e-05,2]
[420811644,1776549047603,-41171.90077219,8.775e-05,2]
[420811645,1776549047615,-350.88499915,8.775e-05,2]
[420811646,1776549087079,1597.0,0.00032877,120]
[420811647,1776549106516,798.5,0.00032877,120]
[420811648,1776549272904,500.0,0.0003287,120]
[420811649,1776549336698,1436.81,0.00030822,120]
[420811650,1776549337023,1436.81,0.00031397,120]
[420811651,1776549337338,1436.81,0.00031973,120]
[420811652,1776549386228,500.0,0.00030822,120]
[420811653,1776549386541,500.0,0.00031397,120]
[420811654,1776549386852,500.0,0.00031973,120]
[420811655,1776549387153,500.0,0.00032548,120]
[420811656,1776549387285,500.0,0.00027599,120]
[420811657,1776549387507,431.64,0.00027984,120]
[420811658,1776549552755,1756.5036237,0.00032876,120]
[420811659,1776549606274,500.0,0.0003287,120]
[420811664,1776549782797,500.0,0.00027949,120]
[420811665,1776549783010,500.0,0.00027984,120]
[420811666,1776549783275,500.0,0.00029799,120]
[420811667,1776549783502,500.0,0.00029799,120]
[420811668,1776549783734,368.64,0.00029799,120]
[420811669,1776549933165,500.0,0.0003287,120]
[420811670,1776549940844,-158.01,7.518e-05,2]
[420811671,1776549976076,2314.99,7.494e-05,2]
[420811673,1776550151990,307.0,0.00032877,120]
[420811677,1776550231608,-1852.42,7.446e-05,2]
[420811678,1776550231618,-200.0,7.464e-05,2]
[420811679,1776550231628,-300.0,7.493e-05,2]
[420811680,1776550231638,-1200.0,7.493e-05,2]
[420811681,1776550231648,-300.0,7.493e-05,2]
[420811682,1776550231657,-8346.25,7.494e-05,2]
[420811683,1776550231667,-1500.0,7.573e-05,2]
[420811684,1776550231676,-1840.04,7.617e-05,2]
[420811685,1776550231686,-13905.16,7.68e-05,2]
[420811686,1776550231696,-250.0,8.191e-05,2]
[420811687,1776550231705,-156.34,8.219e-05,2]
[420811688,1776550231720,-1247.42,8.219e-05,2]
[420811689,1776550231730,-162.56,8.219e-05,2]
[420811690,1776550231739,-150.0,8.241e-05,2]
[420811691,1776550231749,-420.0,8.242e-05,2]
[420811692,1776550231759,-420.0,8.242e-05,2]
[420811693,1776550231769,-1680.0,8.242e-05,2]
[420811694,1776550231779,-150.0,8.295e-05,2]
[420811695,1776550231789,-578.20924308,8.296e-05,2]
[420811696,1776550231798,-200.0,8.296e-05,2]
[420811697,1776550231809,-1377.42282659,8.296e-05,2]
[420811698,1776550231818,-2212.14226553,8.296e-05,2]
[420811699,1776550231828,-695.39793187,8.296e-05,2]
[420811701,1776550231839,-500.0,8.296e-05,2]
[420811703,1776550231848,-223.55717259,8.296e-05,2]
[420811705,1776550231858,-351.59905131,8.296e-05,2]
[420811706,1776550231868,-151.0,8.296e-05,2]
[420811707,1776550231877,-330.51108339,8.296e-05,2]
[420811709,1776550231887,-174.61919141,8.296e-05,2]
[420811710,1776550231896,-160.94599482,8.296e-05,2]
[420811711,1776550231906,-247.67168917,8.296e-05,2]
[420811712,1776550231915,-458.98000127,8.296e-05,2]
[420811713,1776550231925,-500.0,8.303e-05,2]
[420811714,1776550231938,-500.0,8.303e-05,2]
[420811715,1776550231947,-65500.21148845,8.323e-05,2]
[420811716,1776550233937,-570843.86891155,8.323e-05,2]
[420811717,1776550233947,-500.0,8.351e-05,2]
[420811718,1776550233956,-151.0,8.351e-05,2]
[420811719,1776550233965,-500.0,8.406e-05,2]
[420811720,1776550233975,-151.0,8.406e-05,2]
[420811721,1776550233984,-2000.0,8.428e-05,2]
[420811722,1776550233993,-500.0,8.461e-05,2]
[420811723,1776550234003,-151.0,8.461e-05,2]
[420811724,1776550234013,-24924.9706,8.475e-05,2]
[420811725,1776550234026,-150.0,8.475e-05,2]
[420811726,1776550234036,-500.0,8.516e-05,2]
[420811727,1776550234046,-151.0,8.516e-05,2]
[420811728,1776550234055,-172.67,8.533e-05,2]
[420811729,1776550234064,-297.46,8.541e-05,2]
[420811730,1776550234074,-680.71634458,8.543e-05,2]
[420811731,1776550234083,-500.0,8.553e-05,2]
[420811732,1776550234093,-160.08522662,8.553e-05,2]
[420811733,1776550234102,-500.0,8.553e-05,2]
[420811734,1776550234114,-500.0,8.553e-05,2]
[420811735,1776550234123,-171.93182394,8.553e-05,2]
[420811736,1776550234132,-500.0,8.571e-05,2]
[420811737,1776550234141,-151.0,8.571e-05,2]
[420811738,1776550234150,-500.0,8.574e-05,2]
[420811739,1776550234159,-5288.152,8.574e-05,2]
[420811740,1776550234169,-318.103,8.574e-05,2]
[420811741,1776550234178,-500.0,8.574e-05,2]
[420811742,1776550234187,-296.39796404,8.574e-05,2]
[420811743,1776550234197,-500.0,8.574e-05,2]
[420811744,1776550234206,-500.0,8.574e-05,2]
[420811745,1776550234216,-500.0,8.574e-05,2]
[420811746,1776550234225,-500.0,8.574e-05,2]
[420811747,1776550234234,-500.0,8.574e-05,2]
[420811748,1776550234244,-500.0,8.574e-05,2]
[420811749,1776550234253,-500.0,8.574e-05,2]
[420811750,1776550234262,-500.0,8.574e-05,2]
[420811751,1776550234272,-500.0,8.574e-05,2]
[420811752,1776550234281,-500.0,8.574e-05,2]
[420811753,1776550234290,-500.0,8.574e-05,2]
[420811754,1776550234299,-500.0,8.574e-05,2]
[420811755,1776550234308,-500.0,8.574e-05,2]
[420811756,1776550234318,-500.0,8.574e-05,2]
[420811757,1776550234327,-500.0,8.574e-05,2]
[420811758,1776550234336,-500.0,8.574e-05,2]
[420811759,1776550234345,-500.0,8.574e-05,2]
[420811760,1776550234355,-500.0,8.574e-05,2]
[420811761,1776550234364,-500.0,8.574e-05,2]